Cogmind - Beta 16 @@@ ROGUE MODE // 2026.01.09 @ 12:27:40 Player: OctarineSorcerer Result: Destroyed by G-47 Trooper with Particle Gun Performance ------------- Evolutions (1) 500 Regions Visited (2) 400 Robots Destroyed (7) 35 Value Destroyed (91) 91 Prototype IDs (0) 0 Alien Tech Used (0) 0 Bonus (0) 0 TOTAL SCORE: 1026 Bonus ------- None Cogmind --------- Core Integrity 0/400 Matter 114/300 Energy 99/100 System Corruption 0% Temperature Cool (9) Movement Core (100) Ox1 Location -9/Materials Parts ------- > --- POWER (2) -------- (None) > --- PROPULSION (3) --- (None) > --- UTILITY (2) ------ Hardened Light Armor Plating > --- WEAPON (2) ------- (None) > --- INVENTORY (5) ---- VSS Leg VSS Leg Improved Power Shielding Improved Power Shielding Hacking Suite Peak State ------------ > --- POWER ------------ (None) > --- PROPULSION ------- VSS Leg VSS Leg Wheel > --- UTILITY ---------- Small Storage Unit > --- WEAPON ----------- Light Assault Rifle Mini Grenade Launcher > --- INVENTORY -------- VSS Leg VSS Leg Improved Power Shielding Improved Power Shielding Hardened Light Armor Plating Hacking Suite Hacking Suite [Rating: 13] Favorites ----------- Power Light Ion Engine Engine Light Ion Engine Propulsion Wheel Leg Aluminum Leg Wheel Wheel Utility Small Storage Unit Device Tractor Beam Storage Small Storage Unit Protection Hardened Light Armor Plating Weapon Light Assault Rifle Energy Gun Medium Laser Ballistic Gun Light Assault Rifle Launcher Mini Grenade Launcher Build | -11 -10 -9 ------- Run | Yrd Mat Mat Slots Evolved 2 | . . 2 Power 1 | . . 1 Propulsion 1 | . . 1 Utility . | . . . Weapon . | . . . Parts Attached 16 | 6 5 5 Power 2 | 1 . 1 Engine 2 | 1 . 1 Core . | . . . Reactor . | . . . Propulsion 6 | 2 2 2 Treads . | . . . Leg 4 | . 2 2 Wheel 2 | 2 . . Hover . | . . . Flight . | . . . Utility 3 | 1 1 1 Device 1 | . 1 . Storage 1 | 1 . . Processor . | . . . Hackware . | . . . Protection 1 | . . 1 Artifact . | . . . Weapon 5 | 2 2 1 Energy Gun 2 | 2 . . Energy Cannon . | . . . Ballistic Gun 2 | . 2 . Ballistic Cannon . | . . . Launcher 1 | . . 1 Special Weapon . | . . . Impact Weapon . | . . . Slashing Weapon . | . . . Piercing Weapon . | . . . Special Melee Weapon . | . . . Unidentified Prototypes . | . . . Parts Lost 7 | . . 7 Power 1 | . . 1 Propulsion 4 | . . 4 Utility 2 | . . 2 Weapon . | . . . Highest Loss Streak 3 | . . 3 To Critical Strikes . | . . . Average Backups 5 | 1 5 6 Power . | . 1 . Propulsion 2 | . 2 2 Utility 1 | . . 2 Weapon 1 | . 1 1 Tool/Special . | . . . Unused Backups 8 | . . 8 Power . | . . . Propulsion 3 | . . 3 Utility 5 | . . 5 Weapon . | . . . Tool/Special . | . . . Average Slot Usage (%) 66 | . 85 55 Engine 8 | . 14 6 Leg 8 | . 1 12 Wheel 11 | . 26 3 Device 4 | . . 6 Storage 11 | . 14 10 Energy Gun 9 | . 26 . Ballistic Gun 9 | . 1 14 Peak Build Rating 13 | 6 7 13 Average Rating 6 | 4 6 6 On Entrance 4 | . 6 7 Avg Prop Armor Cover (%) 9 | . . 9 Naked Turns . | . . . Heaviest Build 12 | 12 12 11 Greatest Support 24 | 20 20 24 Greatest Overweight (x) 3 | . . 3 Average Overweight (x) . | . . . Largest Inventory Capacity 8 | 8 8 8 Average Capacity 7 | 6 8 7 Most Carried 8 | 4 7 8 Average Carried 5 | 2 5 6 Final Capacity 8 | 8 8 5 Final Carried 6 | 4 6 5 Class Distribution -------------------- 100% | Mutant Dominant Class ---------------- Mutant | -10/Materials Mutant | -9/Materials Resources | -11 -10 -9 ----------- Run | Yrd Mat Mat Matter Collected 231 | 184 47 . Remotely . | . . . Salvage Created 111 | . 47 64 Parts 10 | . 4 6 Haulers Intercepted . | . . . Recyclers Shooed . | . . . Parts Field Recycled . | . . . Retrieved Matter . | . . . Parts Self-Destructed . | . . . Prevented . | . . . Parts Restored . | . . . Kills | -11 -10 -9 ------- Run | Yrd Mat Mat Combat Hostiles Destroyed 6 | . 3 3 Guns 5 | . 3 2 AOE 1 | . . 1 Classes Destroyed 3 | . 1 2 Tunneler 1 | . . 1 Swarmer 5 | . 3 2 Grunt 1 | . . 1 Best Kill Streak 3 | . 3 2 Combat Bots Only 3 | . 3 2 Max Kills in Single Turn 2 | . 2 2 Gunslinging 1 | . 1 . Exploded 1 | . . 1 Melee . | . . . Uniques/NPCs Destroyed . | . . . Combat | -11 -10 -9 -------- Run | Yrd Mat Mat Hostile Shots Fired 177 | . 26 151 Missed 64 | . 6 58 Hits 113 | . 20 93 Projectile 113 | . 20 93 Critical Strikes 2 | . . 2 Damage Taken 1441 | . 168 1273 Core 445 | . 43 402 Absorbed by Shields . | . . . Core Remaining (%) 91 | 100 82 . Volleys Fired 14 | 1 5 8 Largest 2 | 1 2 2 Hottest 100 | 50 100 50 Shots Fired 27 | 1 10 16 Gun 23 | 1 10 12 Cannon . | . . . Launcher 4 | . . 4 Special . | . . . Kinetic 12 | . . 12 Thermal 11 | 1 10 . Explosive 4 | . . 4 Electromagnetic . | . . . Robot Hit Streak 4 | . 3 4 Robot Miss Streak 5 | 1 5 1 Penetration Max . | . . . Secondary Targets 1 | . 1 . Max Gunslinging Chain 1 | . 1 . Shots Hit Robots 16 | . 5 11 Core Hits 12 | . 3 9 Critical Kills . | . . . Critical Parts Destroyed . | . . . Critical Strikes 2 | . 2 . Burn 2 | . 2 . Melee Attacks . | . . . Impact . | . . . Slashing . | . . . Piercing . | . . . Sneak Attacks . | . . . Combat Hostiles . | . . . Follow-up Attacks . | . . . Damage Inflicted 310 | . 61 249 Guns 124 | . 61 63 Cannons . | . . . Explosions 186 | . . 186 Melee . | . . . Ramming . | . . . Kinetic 63 | . . 63 Thermal 61 | . 61 . Explosive 186 | . . 186 Electromagnetic . | . . . Impact . | . . . Slashing . | . . . Piercing . | . . . Highest Corruption . | . . . Average Corruption . | . . . Corruption Purged . | . . . Corruption Blocked . | . . . Overload Shots . | . . . Overflow Damage 6 | . . 6 Projectiles . | . . . Explosions 6 | . . 6 Melee . | . . . Knockbacks . | . . . Impact . | . . . Kinetic . | . . . Secondary . | . . . Self-Inflicted Damage 110 | . . 110 Shots 3 | . . 3 Rammed . | . . . Targets Rammed . | . . . Kicked . | . . . Crushed . | . . . Highest Temperature 98 | 10 98 15 Average Temperature 33 | 7 44 5 Received Heat Transfer 453 | . . 453 Siege Activations . | . . . Martial Activations . | . . . Shielding Activations . | . . . Robots Disrupted . | . . . Combat Hostiles . | . . . Robots Corrupted . | . . . Combat Hostiles . | . . . Parts Fried . | . . . Impact Corruptions . | . . . Robots Melted . | . . . Combat Hostiles . | . . . Parts Melted . | . . . Heat Transferred 333 | . 333 . Parts Sabotaged . | . . . Parts Stolen . | . . . Parts Stripped . | . . . Power Chain Reactions . | . . . Alert | -11 -10 -9 ------- Run | Yrd Mat Mat Maximum Alert Level . | . . . Low Security (%) 100 | 100 100 100 Level 1 . | . . . Level 2 . | . . . Level 3 . | . . . Level 4 . | . . . Level 5 . | . . . High Security . | . . . Max Security . | . . . Peak Influence 99 | . 90 99 Initial 8 | . . 8 Average 33 | . 41 34 Influence Increases 298 | . 105 193 Destroy 0b10 Robot/C 120 | . 60 60 Destroy 0b10 Robot/NC 5 | . . 5 Destroy Leader 20 | . 10 10 Successful Hack 5 | . 5 . Destroy Structure 28 | . . 28 Lose Combat Pursuer 120 | . 30 90 Influence Decreases 235 | . 85 150 Entered New Map 12 | . . 12 Time Decay 185 | . 85 100 Lost Part 38 | . . 38 Squads Dispatched 3 | . . 3 Investigation . | . . . Extermination . | . . . Reinforcement 3 | . . 3 Assault . | . . . Garrison . | . . . Intercept . | . . . Searches Triggered . | . . . Construction Impeded . | . . . Haulers Reinforced . | . . . Active Scanning Responses . | . . . Cargo Convoy Interrupts . | . . . Stealth | -11 -10 -9 --------- Run | Yrd Mat Mat Distress Signals 4 | . 1 3 Communications Jammed . | . . . Distress Signals . | . . . Times Spotted 34 | . 8 26 Peak Tracking Total 14 | . 5 14 Tactical Retreats 4 | . 1 3 Traps | -11 -10 -9 ------- Run | Yrd Mat Mat Traps Triggered 4 | . . 4 Indirectly . | . . . Trap Hack Attempts . | . . . Triggered . | . . . Disarmed . | . . . Reprogrammed . | . . . Reused . | . . . Traps Extracted . | . . . Installed . | . . . Triggered . | . . . Machines | -11 -10 -9 ---------- Run | Yrd Mat Mat Machines Disabled . | . . . Max in Single Turn . | . . . Machines Repaired . | . . . Machines Dismantled . | . . . Machines Sabotaged . | . . . Overloaded Fab Kills . | . . . Hacking | -11 -10 -9 --------- Run | Yrd Mat Mat Machines Accessed 2 | . 2 . Terminals 1 | . 1 . Fabricators . | . . . Repair Stations . | . . . Recycling Units 1 | . 1 . Scanalyzers . | . . . Garrison Access . | . . . Total Hacks 4 | . 4 . Successful 3 | . 3 . Failed 1 | . 1 . Catastrophic . | . . . Database Lockouts . | . . . Manual . | . . . Terminals 2 | . 2 . Fabricators . | . . . Repair Stations . | . . . Recycling Units 2 | . 2 . Scanalyzers . | . . . Garrison Access . | . . . Terminal Hacks 2 | . 2 . Dispatch Records 1 | . 1 . Hauler Manifests 1 | . 1 . Fabricator Hacks . | . . . Repair Station Hacks . | . . . Recycling Unit Hacks 1 | . 1 . Retrieve Components 1 | . 1 . Scanalyzer . | . . . Garrison Access Hacks . | . . . Unauthorized Hacks . | . . . Terminals . | . . . Fabricators . | . . . Repair Stations . | . . . Recycling Units . | . . . Scanalyzers . | . . . Garrison Access . | . . . Data Cores Recovered . | . . . Used . | . . . Hacking Detections 2 | . 2 . Full Trace Events 1 | . 1 . Feedback Events . | . . . Feedback Blocked . | . . . Robot Schematics Acquired . | . . . Robots Built . | . . . Authchips . | . . . Time . | . . . Total Robot Build Rating . | . . . Part Schematics Acquired . | . . . Parts Built . | . . . Authchips . | . . . Time . | . . . Total Part Build Rating . | . . . Part Studies Acquired . | . . . Parts Repaired . | . . . Time . | . . . Parts Recycled . | . . . Recycled Matter . | . . . Retrieved Matter . | . . . Retrieved Components 2 | . 2 . Parts Scanalyzed . | . . . Part Schematics Acquired . | . . . Parts Damaged . | . . . Bothacking | -11 -10 -9 ------------ Run | Yrd Mat Mat Used RIF Installer . | . . . Robots Hacked . | . . . Non-combat . | . . . Combat . | . . . Robot Hacks Applied . | . . . Relay Couplers Released . | . . . Fabnet Peak Effective % . | . . . Robots Rewired . | . . . Allies Hacked . | . . . Hacks Repelled . | . . . Allies | -11 -10 -9 -------- Run | Yrd Mat Mat Total Allies . | . . . Largest Group . | . . . Highest-Rated Group . | . . . Highest-Rated Ally . | . . . Total Orders . | . . . Ally Attacks . | . . . Total Damage . | . . . Kills . | . . . Allies Corrupted . | . . . Allies Melted . | . . . Intel | -11 -10 -9 ------- Run | Yrd Mat Mat Active Infowar (turns) . | . . . Robot Analysis Total . | . . . Derelict Logs Recovered . | . . . Drone Launches . | . . . Drone Recoveries . | . . . Exploration | -11 -10 -9 ------------- Run | Yrd Mat Mat Turns Passed 664 | 66 211 387 Spaces Moved 576 | 65 191 320 Core 104 | 3 . 101 Treads . | . . . Legs 145 | . 9 136 Wheels 327 | 62 182 83 Hover . | . . . Flight . | . . . Fastest Speed 50 | 50 80 80 Average Speed 93 | 78 81 104 Slowest Speed 200 | 80 120 200 Overloaded Moves . | . . . Propulsion Burnouts . | . . . Robots Hopped . | . . . Potential Cave-ins . | . . . Cave-ins Triggered . | . . . Exploration Rate (%) 22 | 4 29 34 Regions Visited 2 Branch Regions . Pre-discovered Areas . | . . . Known Exits Taken . | . . . Unknown Exits Taken 2 | 1 1 . Scrap Searched . | . . . Spaces Dug . | . . . Terrain Destroyed 27 | . . 27 Melee . | . . . Projectile . | . . . AOE 27 | . . 27 Terrain Rammed . | . . . Walls Destroyed . | . . . Machines Disabled . | . . . Actions | -11 -10 -9 --------- Run | Yrd Mat Mat Total 670 | 75 233 362 Wait 38 | . 30 8 Move 574 | 64 190 320 Hop . | . . . Pick Up 18 | 4 3 11 Fast Attach 7 | 6 . 1 Attach 8 | . 1 7 Detach 1 | . . 1 Swap 5 | . 4 1 Drop 5 | . . 5 Fire 14 | 1 5 8 Melee . | . . . Ram . | . . . Kick . | . . . Crush . | . . . Escape Stasis . | . . . Rewire . | . . . Trap . | . . . Miscellaneous . | . . . Route ------- -11/Scrapyard -10/Materials -9/Materials History --------- Turn | Location | Event 33 | -11/Scrapyard | Discovered new exit (range 15) 67 | -11/Scrapyard | Entered Materials 167 | -10/Materials | Discovered new exit (range 4) 278 | -10/Materials | Entered another Materials area 278 | -9/Materials | Evolved 2 slots: Power x1, Propulsion x1 320 | -9/Materials | Build established: Mutant 520 | -9/Materials | Lost 3 parts (2n1u) 549 | -9/Materials | Core integrity fell below 50% 649 | -9/Materials | Core integrity fell below 20% 665 | -9/Materials | Destroyed by G-47 Trooper with Particle Gun Last Messages --------------- 00536_ W-16 Scout sends out distress signal. 00538_ K-01 Serf collects debris. 00543_ The unstable cave ceiling collapses. 00550_ K-01 Serf collects debris. 00555_ Triggered Blade Trap. 00555_ Massive razor-sharp blades shoot up from within the floor. 00555_ Lgt. Assault Rifle severed. 00555_ Mni. Grenade Launcher severed. 00555_ VSS Leg severed. 00556_ Triggered Blade Trap. 00556_ Massive razor-sharp blades shoot up from within the floor. 00556_ VSS Leg severed. 00557_ Acquired VSS Leg. 00558_ Triggered Blade Trap. 00558_ Massive razor-sharp blades shoot up from within the floor. 00558_ VSS Leg severed. 00655_ Sml. Storage Unit destroyed. Map ----- +----------------------------------------------------+ | ?????????????????????????????????????????????????? | | ?????????????????????????????????????????????????? | | ?????????????????????????????????????????????????? | | ?????????????????????????????????????????????????? | | ?????????????????????????????????????????????????? | | ?????????????????????????????????????????????????? | | ?????????????????????????????????????????????????? | | ?????????????????????????????????????????????????? | | ?????????????????????????????????????????????????? | | ????? #??????????????????????????????????????????? | | ???? #####??????????????????????????????????????? | | ??? ?????????????????????????????????????? | | ?? ?????????????????????????????????????? | | ?? ???????????????????????????????????????? | | ?? #????????????????????????????????????????? | | ## #????????????????????????????????????????? | | #????????????????????????????????????????? | | #????????????????????????????????????????? | | """ #????????????????????????????????????????? | | ^ """ #????????????????????????????????????????? | | """ #????????????????????????????????????????? | | #????????????????????????????????????????? | | ^ #????????????????????????????????????????? | | """ #???????????????###+###??????????????????? | | """ ################# #??????????????????? | | """ g @ #??????????????????? | | g Y g/ """????????????? | | g ! r g g# ??????????? | | ######################### #??? ?????????? | | #???????????????????????## ##???????##?????????? | | #????????????????????????# ###????##???????????? | | #????????????????????????# # #???????????? | | ###########??????????????# o + #???????????? | | + #???????######## # #???????????? | | # """ #??# #??######????????#### | | # """"" #???????######## ################## | | # """"" #???????######## """ | | # """"" #???????# # "T" | | # """ #???????# """ # ############ | | + #???????# """ + #???######### | | # #???????# """ # #???# # | | #####/#####???????# # """ #???# " # | | #### ########????# # """ ##### "" # | | #??######## """ + "" # | | ########????# [# #### """ " | | ###+###########??# """ # #??# "" # | | ### T #?# "Y" + #####+##??# """ #+# | | ###[ #?# # #?????????#! """ # | | # """ """ #?# # #?????????# """ # " | | " # """"""""????# = # #?????????# " # " | +----------------------------------------------------+ Best States ------------- Heat Dissipation 28 Energy Generation 10 Energy Capacity 125 Matter Stores 271 Matter Capacity 300 Sight Range 16 Terrain Scan Density 10 Armor Coverage 150 Evasion (%) 55 Item Schematics ----------------- None Robot Schematics ------------------ None Fabricated ------------ Nothing Repaired ---------- Nothing Studied --------- None Alien Tech Used ----------------- None Achievements -------------- Ghost 'Em Sprinter Challenges ------------ None Game ------ Seed StrikeWeldingRefractor Manual? 0 Play Time 00:24:51 Cumulative 36.8 hours Start 2025.12.24 @ 14:00:01 End 2026.01.09 @ 12:27:40 Sessions 1 Manual Loads 0 Difficulty Rogue Special Mode None Game No. 48 Rogue 48 Adventurer 0 Explorer 0 Win Type - Total 0 Types 0/0/0/0/0/0/0/0/0/0 Lore% 9 Gallery% 25 Achievement% 15 Wizard Run 0 Options --------- Layout 1 ASCII 0 Keyboard 0 Movement Arrows Keybinds 0 Fullscreen 1 Font 16/SmallcapsGlow Map View 50x40 Zoom Use 0% Tactical HUD 1 Map Filters NONE Filters NONE Steam SD RUN: a116b289-f884-48de-9818-f2bec70ca621